bitfinex/quotes_ETHUSD_20250908
["timestamp","ask_amount","ask_price","bid_price","bid_amount"]
[1757357365457,11.3508,4331.8,4331.7,45.13728161]
[1757357365631,13.0437,4331.8,4331.7,41.28828161]
[1757357365832,13.0437,4331.8,4331.7,45.13728161]
[1757357366535,13.0437,4331.8,4331.7,44.44493424]
[1757357367035,14.2737,4331.8,4331.7,44.44493424]
[1757357367231,15.70307,4331.8,4331.7,41.2702]
[1757357367556,15.70307,4331.8,4331.7,44.155]
[1757357368757,16.93307,4331.8,4331.7,44.155]
[1757357368964,16.93407,4331.8,4331.7,44.155]
[1757357370245,18.16407,4331.8,4331.7,44.155]
[1757357371527,19.39407,4331.8,4331.7,44.155]
[1757357372865,20.62407,4331.8,4331.7,10.306]
[1757357373041,20.62407,4331.8,4331.7,14.155]
[1757357373867,22.93257916,4331.8,4331.7,14.155]
[1757357374260,24.16257916,4331.8,4331.7,14.155]
[1757357374833,21.85407,4331.8,4331.7,21.111211]
[1757357375656,23.08407,4331.8,4331.7,17.262211]
[1757357375975,23.08407,4331.8,4331.7,54.81688968]
[1757357375976,18.476,4331.8,4331.7,54.81688968]
[1757357376277,18.476,4331.8,4331.7,51.93418968]
[1757357376488,21.1554,4331.8,4331.7,21.111211]
[1757357376786,23.72804,4331.8,4331.7,21.111211]
[1757357376944,24.95804,4331.8,4331.7,21.111211]
[1757357377491,24.50294,4331.8,4331.7,21.111211]
[1757357377797,22.11324,4331.8,4331.7,21.111211]
[1757357377954,19.9957,4331.8,4331.7,21.111211]
[1757357378380,21.2257,4331.8,4331.7,21.111211]
[1757357379850,22.4557,4331.8,4331.7,21.111211]
[1757357381267,23.396,4331.8,4331.7,21.409711]
[1757357382014,26.0754,4331.8,4331.7,21.111211]
[1757357382217,26.5305,4331.8,4331.7,21.111211]
[1757357382578,27.7605,4331.8,4331.7,21.111211]
[1757357384017,28.9905,4331.8,4331.7,21.111211]
[1757357384404,25.856,4331.8,4331.7,21.111211]
[1757357384581,26.1457,4331.8,4331.7,21.111211]
[1757357384782,28.41360797,4331.8,4331.7,21.111211]
[1757357385096,30.80330797,4331.8,4331.7,21.111211]
[1757357385300,32.03330797,4331.8,4331.7,21.111211]
[1757357385605,32.03330797,4331.8,4331.7,17.262211]
[1757357385818,32.48840797,4331.8,4331.7,21.111211]
[1757357386683,33.26330797,4331.8,4331.7,21.111211]
[1757357386877,33.71840797,4331.8,4331.7,21.111211]
[1757357388077,34.94840797,4331.8,4331.7,21.111211]
[1757357389498,36.17840797,4331.8,4331.7,21.111211]
[1757357390425,35.72330797,4331.8,4331.7,17.262211]
[1757357390604,38.48691713,4331.8,4331.7,18.111211]
[1757357390799,39.71691713,4331.8,4331.7,21.111211]
[1757357392445,40.94691713,4331.8,4331.7,21.111211]
[1757357393661,42.96891713,4331.8,4331.7,14.262211]
[1757357393955,42.96891713,4331.8,4331.7,18.111211]
[1757357395248,44.19891713,4331.8,4331.7,18.111211]
[1757357396125,44.19891713,4331.8,4331.7,14.262211]
[1757357396354,44.19891713,4331.8,4331.7,18.111211]
[1757357396541,45.42891713,4331.8,4331.7,18.111211]
[1757357397467,47.86091713,4331.8,4331.7,18.111211]
[1757357397627,45.42891713,4331.8,4331.7,18.111211]
[1757357398025,46.65891713,4331.8,4331.7,18.111211]
[1757357398260,46.65891713,4331.8,4331.7,14.262211]
[1757357398459,46.65891713,4331.8,4331.7,18.111211]
[1757357398658,49.09091713,4331.8,4331.7,12.576211]
[1757357399330,50.32091713,4331.8,4331.7,12.576211]
[1757357399727,49.86581713,4331.8,4331.7,12.576211]
[1757357399941,44.25211713,4331.8,4331.7,12.576211]
[1757357400140,43.96241713,4331.8,4331.7,12.576211]
[1757357400353,44.25211713,4331.8,4331.7,12.576211]
[1757357400527,48.32691713,4331.8,4331.7,8.727211]
[1757357400732,47.87181713,4331.8,4331.7,12.576211]
[1757357401074,47.87181713,4331.8,4331.7,18.795411]
[1757357401075,40.616,4331.8,4331.7,18.795411]
[1757357401432,40.616,4331.8,4331.7,15.795411]
[1757357402190,41.846,4331.8,4331.7,15.795411]
[1757357402809,41.846,4331.8,4331.7,13.340211]
[1757357403443,43.076,4331.8,4331.7,15.705211]
[1757357404546,43.076,4331.8,4331.7,18.705211]
[1757357405049,44.306,4331.8,4331.7,18.705211]
[1757357405447,44.306,4331.8,4331.7,15.705211]
[1757357405765,44.306,4331.8,4331.7,18.705211]
[1757357406080,44.306,4331.8,4331.7,21.53825213]
[1757357406440,44.306,4331.8,4331.7,51.53825213]
[1757357406638,45.536,4331.8,4331.7,51.53825213]
[1757357407033,45.536,4331.8,4331.7,51.27411058]
[1757357407374,45.536,4331.8,4331.7,51.01377345]
[1757357407779,45.536,4331.8,4331.7,51.18253728]
[1757357408081,46.766,4331.8,4331.7,51.18253728]
[1757357408651,46.766,4331.8,4331.7,44.856211]
[1757357408881,46.766,4331.8,4331.7,21.01477345]
[1757357409396,47.996,4331.8,4331.7,51.01477345]
[1757357409996,47.996,4331.8,4331.7,48.707211]
[1757357410705,49.226,4331.8,4331.7,48.707211]
[1757357410861,49.226,4331.8,4331.7,18.707211]
[1757357411065,49.226,4331.8,4331.7,48.707211]
[1757357411998,49.226,4331.8,4331.7,51.01577345]
[1757357412223,49.226,4331.8,4331.7,42.025711]
[1757357412224,50.456,4331.8,4331.7,42.025711]
[1757357412364,50.456,4331.8,4331.7,48.18427345]
[1757357412570,50.456,4331.8,4331.7,48.64977345]
[1757357413300,50.456,4331.8,4331.7,46.341211]
[1757357413487,50.456,4331.8,4331.7,42.491211]
[1757357413659,51.686,4331.8,4331.7,45.875711]
[1757357413860,51.686,4331.8,4331.7,45.577211]
[1757357414265,51.686,4331.8,4331.7,45.862611]
[1757357414458,51.686,4331.8,4331.7,48.63667345]
[1757357415007,52.916,4331.8,4331.7,21.00167345]
[1757357415304,52.916,4331.8,4331.7,18.693111]
[1757357415497,52.916,4331.8,4331.7,48.693111]
[1757357416166,52.916,4331.8,4331.7,41.727211]
[1757357416368,56.852,4331.8,4331.7,11.727211]
[1757357416606,56.852,4331.8,4331.7,15.576211]
[1757357416607,57.3166,4331.8,4331.7,15.576211]
[1757357417675,58.5466,4331.8,4331.7,15.576211]
[1757357418416,63.12301713,4331.8,4331.7,8.727211]
[1757357418872,63.12301713,4331.8,4331.7,15.576211]
[1757357419072,64.35301713,4331.8,4331.7,15.576211]
[1757357420526,65.58301713,4331.8,4331.7,15.576211]
[1757357420921,66.37501713,4331.8,4331.7,8.727211]
[1757357421127,66.37501713,4331.8,4331.7,12.576211]
[1757357422053,67.60501713,4331.8,4331.7,12.576211]
[1757357423347,68.83501713,4331.8,4331.7,12.576211]
[1757357424651,70.06501713,4331.8,4331.7,12.576211]
[1757357426218,71.29501713,4331.8,4331.7,12.576211]
[1757357426809,71.29501713,4331.8,4331.7,8.727211]
[1757357427065,71.29501713,4331.8,4331.7,12.577211]
[1757357427409,73.72301713,4331.8,4331.7,12.577211]
[1757357427637,74.95301713,4331.8,4331.7,12.577211]
[1757357428759,74.95301713,4331.8,4331.7,8.727211]
[1757357428954,76.18301713,4331.8,4331.7,12.577211]
[1757357430328,3.22,4331.7,4330.8,0.002]
[1757357430530,3.10093558,4331.0,4330.9,1.771]
[1757357430737,8.69953558,4331.0,4330.9,5.621]
[1757357430932,6.27153558,4331.0,4330.9,5.621]
[1757357431169,9.80037565,4331.0,4330.9,5.621]
[1757357431672,11.03037565,4331.0,4330.9,1.771]
[1757357431881,11.03037565,4331.0,4330.9,5.621]
[1757357432090,11.03037565,4331.0,4330.9,5.622]
[1757357432576,11.03037565,4331.0,4330.0,0.002]
[1757357432577,5.52941548,4330.1,4330.0,0.002]
[1757357432746,14.92913144,4330.1,4330.0,3.853]
[1757357432944,19.79037888,4330.1,4330.0,3.853]
[1757357434268,21.02037888,4330.1,4330.0,3.853]
[1757357434438,3.10152215,4329.9,4329.7,1.771]
[1757357434845,6.23892215,4329.9,4329.7,1.771]
[1757357435243,5.78162215,4329.9,4329.7,1.771]
[1757357435438,7.17464599,4329.9,4329.7,1.771]
[1757357435731,8.86194599,4329.9,4329.8,3.879]
[1757357436642,8.40464599,4329.9,4329.8,3.879]
[1757357436853,11.28994599,4329.9,4329.8,3.879]
[1757357437049,10.09194599,4329.9,4329.8,3.879]
[1757357438182,9.29994599,4329.9,4329.8,3.879]
[1757357438343,11.32194599,4329.9,4329.8,3.879]
[1757357439271,11.32194599,4329.9,4329.8,3.878]
[1757357440277,12.55194599,4329.9,4329.8,3.878]
[1757357441439,6.31302384,4329.9,4329.8,4.1917]
[1757357441650,6.15,4329.9,4329.8,6.9795]
[1757357442777,6.2652,4329.9,4329.8,6.9795]
[1757357443089,7.4952,4329.9,4329.8,9.9795]
[1757357443253,7.4952,4329.9,4329.8,9.9825]
[1757357444267,7.4952,4329.9,4329.8,5.6863]
[1757357444463,8.7252,4329.9,4329.8,9.9825]
[1757357445751,9.9552,4329.9,4329.8,9.9825]
[1757357446166,9.9552,4329.9,4329.8,9.5403]
[1757357446357,9.9552,4329.9,4329.8,9.9825]
[1757357447095,11.1852,4329.9,4329.8,9.9825]
[1757357448595,12.4152,4329.9,4329.8,6.881]
[1757357448794,14.06762,4329.9,4329.8,6.881]
[1757357448990,15.01262215,4329.9,4329.8,6.881]
[1757357449311,14.72472215,4329.9,4329.8,3.027]
[1757357449510,12.4152,4329.9,4329.8,7.1947]
[1757357450107,13.6452,4329.9,4329.8,7.6369]
[1757357450346,13.6452,4329.9,4329.8,9.9825]
[1757357450627,13.53,4329.9,4329.8,9.9825]
[1757357451489,17.06952215,4329.9,4329.8,7.1947]
[1757357451682,17.06952215,4329.9,4329.8,7.6369]
[1757357451896,17.06952215,4329.9,4329.8,7.1947]
[1757357452516,17.06952215,4329.9,4329.8,6.881]
[1757357453048,18.29952215,4329.9,4329.8,6.881]
[1757357454403,17.22,4329.9,4329.8,6.881]
[1757357454822,19.52952215,4329.9,4329.8,6.881]
[1757357455132,17.22,4329.9,4329.8,6.881]
[1757357455430,19.81742215,4329.9,4329.8,6.88]
[1757357455736,20.75952215,4329.9,4329.8,6.88]
[1757357455937,18.45,4329.9,4329.8,6.88]
[1757357456102,21.04742215,4329.9,4329.8,3.88]
[1757357456306,25.70753012,4329.9,4329.8,3.88]
[1757357456620,26.16483012,4329.9,4329.8,3.88]
[1757357456928,26.95683012,4329.9,4329.8,3.88]
[1757357457107,28.18683012,4329.9,4329.8,3.88]
[1757357457487,25.33733012,4329.9,4329.8,3.88]
[1757357457693,25.79463012,4329.9,4329.8,3.88]
[1757357458033,30.61483012,4329.9,4329.8,3.881]
[1757357458506,29.41683012,4329.9,4329.8,3.881]
[1757357458704,31.84483012,4329.9,4329.8,3.881]
[1757357460032,33.07483012,4329.9,4329.8,3.881]
[1757357461205,34.30483012,4329.9,4329.8,3.881]
[1757357461390,28.73943012,4329.9,4329.8,3.881]
[1757357461900,29.04253012,4329.9,4329.8,3.881]
[1757357462715,30.27253012,4329.9,4329.8,3.881]
[1757357464235,31.50253012,4329.9,4329.8,3.881]
[1757357465026,31.19943012,4329.9,4329.8,4.1901]
[1757357465234,31.50253012,4329.9,4329.8,3.881]
[1757357465737,32.73253012,4329.9,4329.8,3.881]
[1757357466315,32.42943012,4329.9,4329.8,3.881]
[1757357466510,27.06,4329.9,4329.8,6.9375]
[1757357466720,27.06,4329.9,4329.8,12.2470755]
[1757357466920,28.29,4329.9,4329.8,9.9375]
[1757357468300,29.52,4329.9,4329.8,9.9375]
[1757357468628,29.8231,4329.9,4329.8,6.881]
[1757357468819,32.09100797,4329.9,4329.8,3.881]
[1757357469034,31.78790797,4329.9,4329.8,4.1901]
[1757357469241,29.52,4329.9,4329.8,6.9375]
[1757357469638,30.75,4329.9,4329.8,9.9375]
[1757357471016,31.98,4329.9,4329.8,9.9375]
[1757357472528,33.21,4329.9,4329.8,9.9375]
[1757357472765,33.21,4329.9,4329.8,6.0835]
[1757357472902,33.21,4329.9,4329.8,9.9395]
[1757357474137,34.44,4329.9,4329.8,9.9395]
[1757357474729,34.44,4329.9,4329.8,42.2490755]
[1757357475503,35.67,4329.9,4329.8,35.6382]
[1757357475828,35.67,4329.9,4329.8,7.6364]
[1757357476201,35.67,4329.9,4329.8,9.9385]
[1757357476838,36.9,4329.9,4329.8,9.9385]
[1757357477009,37.9951,4329.9,4329.8,3.027]
[1757357477216,37.9951,4329.9,4329.8,6.884]
[1757357477546,37.692,4329.9,4329.8,7.6384]
[1757357477849,37.9951,4329.9,4329.8,6.884]
[1757357478020,37.692,4329.9,4329.8,6.884]
[1757357478226,38.922,4329.9,4329.8,7.1931]
[1757357479624,40.152,4329.9,4329.8,7.6384]
[1757357480026,40.152,4329.9,4329.8,7.1931]
[1757357480214,40.152,4329.9,4329.8,6.884]
[1757357480415,40.152,4329.9,4329.8,7.1921]
[1757357480956,41.382,4329.9,4329.8,7.1921]
[1757357481151,41.382,4329.9,4329.8,6.882]
[1757357482285,42.9151,4329.9,4329.8,6.882]
[1757357483236,42.612,4329.9,4329.8,6.882]
[1757357483883,43.842,4329.9,4329.8,6.882]
[1757357484381,43.842,4329.9,4329.8,7.1911]
[1757357484550,43.842,4329.9,4329.8,8.8741]
[1757357484751,43.842,4329.9,4329.8,12.7281]
[1757357485065,43.05,4329.9,4329.8,15.4755]
[1757357485270,44.28,4329.9,4329.8,15.4755]
[1757357485642,44.28,4329.9,4329.8,13.1734]
[1757357485843,44.28,4329.9,4329.8,12.7281]
[1757357486654,45.51,4329.9,4329.8,12.7281]
[1757357487781,45.51,4329.9,4329.8,8.8741]
[1757357487984,47.8351,4329.9,4329.8,5.565]
[1757357488192,55.32533012,4329.9,4329.8,9.418]
[1757357489503,56.55533012,4329.9,4329.8,9.418]
[1757357489959,56.55533012,4329.9,4329.8,9.7271]
[1757357489960,51.02990797,4329.9,4329.8,9.7271]
[1757357490164,47.97,4329.9,4329.8,15.4745]
[1757357490758,49.2,4329.9,4329.8,15.4745]
[1757357491687,49.2,4329.9,4329.8,12.7271]
[1757357492196,50.43,4329.9,4329.8,12.7271]
[1757357493607,51.66,4329.9,4329.8,12.7271]
[1757357495107,52.89,4329.9,4329.8,12.7271]
[1757357496507,54.12,4329.9,4329.8,12.7271]
[1757357497906,55.35,4329.9,4329.8,15.6171]
[1757357498407,55.35,4329.9,4329.8,13.1655]
[1757357498605,55.35,4329.9,4329.8,12.7271]
[1757357499105,55.35,4329.9,4329.8,13.1655]
[1757357499306,56.58,4329.9,4329.8,13.1655]
[1757357499479,56.58,4329.9,4329.8,12.7271]
[1757357499807,58.82227241,4329.9,4329.8,8.565]
[1757357500010,61.70037241,4329.9,4329.8,12.421]
[1757357500806,62.93037241,4329.9,4329.8,12.421]
[1757357501701,65.23989456,4329.9,4329.8,5.565]
[1757357501877,65.23989456,4329.9,4329.8,9.421]
[1757357502219,64.16037241,4329.9,4329.8,9.421]
[1757357502595,66.46989456,4329.9,4329.8,9.424]
[1757357502788,64.16037241,4329.9,4329.8,9.424]
[1757357503171,66.46989456,4329.9,4329.8,9.424]
[1757357503374,64.16037241,4329.9,4329.8,9.424]
[1757357503686,65.39037241,4329.9,4329.8,9.424]
[1757357503886,67.69989456,4329.9,4329.8,9.424]
[1757357504530,67.69989456,4329.9,4329.8,5.565]
[1757357504705,67.69989456,4329.9,4329.8,9.424]
[1757357505014,68.92989456,4329.9,4329.8,9.424]
[1757357506394,70.15989456,4329.9,4329.8,5.565]
[1757357506574,70.15989456,4329.9,4329.8,9.425]
[1757357507512,69.73149456,4329.9,4329.8,9.425]
[1757357507717,70.96149456,4329.9,4329.8,9.425]
[1757357507904,71.38989456,4329.9,4329.8,9.425]
[1757357508674,68.65197241,4329.9,4329.8,9.425]
[1757357508902,64.752,4329.9,4329.8,9.7182]
[1757357509092,65.982,4329.9,4329.8,9.7182]
[1757357510521,67.212,4329.9,4329.8,9.7182]
[1757357511015,67.212,4329.9,4329.8,9.425]
[1757357511016,67.5145,4329.9,4329.8,9.425]
[1757357511423,67.212,4329.9,4329.8,9.7182]
[1757357511928,68.442,4329.9,4329.8,9.7182]
[1757357512481,68.442,4329.9,4329.8,10.1566]
[1757357512984,68.442,4329.9,4329.8,9.7182]
[1757357513323,68.7445,4329.9,4329.8,9.425]
[1757357513521,69.672,4329.9,4329.8,9.425]
[1757357514722,70.902,4329.9,4329.8,9.425]
[1757357516303,72.4345,4329.9,4329.8,9.425]
[1757357516504,77.01193012,4329.9,4329.8,9.425]
[1757357516711,79.46163012,4329.9,4329.8,9.425]
[1757357516910,79.89003012,4329.9,4329.8,9.425]
[1757357517096,79.46163012,4329.9,4329.8,5.565]
[1757357517296,79.89003012,4329.9,4329.8,9.421]
[1757357517844,81.12003012,4329.9,4329.8,9.421]
[1757357519550,82.35003012,4329.9,4329.8,9.421]
[1757357520052,81.92163012,4329.9,4329.8,9.421]
[1757357520346,82.35003012,4329.9,4329.8,9.421]
[1757357520642,81.92163012,4329.9,4329.8,9.421]
[1757357520793,78.08990797,4329.9,4329.8,9.7142]
[1757357521127,78.08990797,4329.9,4329.8,15.6042]
[1757357521128,75.03,4329.9,4329.8,15.6042]
[1757357522023,75.03,4329.9,4329.8,13.1586]
[1757357522190,76.26,4329.9,4329.8,13.1586]
[1757357523617,78.282,4329.9,4329.8,12.7139]
[1757357524146,78.282,4329.9,4329.8,12.426]
[1757357524658,78.282,4329.9,4329.8,13.1737]
[1757357525022,79.512,4329.9,4329.8,13.1737]
[1757357525846,79.512,4329.9,4329.8,9.3127]
[1757357526052,79.512,4329.9,4329.8,13.1737]
[1757357526652,80.742,4329.9,4329.8,13.1737]
[1757357527226,79.95,4329.9,4329.8,15.4862]
[1757357527427,79.95,4329.9,4329.8,17.7957755]
[1757357527728,79.95,4329.9,4329.8,47.7957755]
[1757357527955,78.9472183,4329.9,4329.8,47.7957755]
[1757357528156,80.1772183,4329.9,4329.8,47.7957755]
[1757357528340,79.6494366,4329.9,4329.8,47.7957755]
[1757357529427,80.8794366,4329.9,4329.8,47.7957755]
[1757357530276,80.8794366,4329.9,4329.8,47.9109755]
[1757357530639,80.8794366,4329.9,4329.8,47.9119755]
[1757357530878,82.1094366,4329.9,4329.8,47.9119755]
[1757357531082,82.1094366,4329.9,4329.8,44.22078708]
[1757357531379,82.1094366,4329.9,4329.8,48.08278708]
[1757357531943,82.1094366,4329.9,4329.8,44.22078708]
[1757357532167,83.3394366,4329.9,4329.8,47.62298708]
[1757357533042,83.3394366,4329.9,4329.8,43.76098708]
[1757357533238,83.3394366,4329.9,4329.8,47.62198708]
[1757357533477,84.5694366,4329.9,4329.8,47.62198708]
[1757357533682,84.5694366,4329.9,4329.8,48.08178708]
[1757357534766,85.7994366,4329.9,4329.8,48.08178708]
[1757357534949,85.7994366,4329.9,4329.8,47.62198708]
[1757357535148,85.7994366,4329.9,4329.8,41.44848708]
[1757357535354,85.7994366,4329.9,4329.8,45.02058708]
[1757357535981,85.7994366,4329.9,4329.8,47.62098708]
[1757357536195,87.0294366,4329.9,4329.8,47.62098708]
[1757357536748,87.0294366,4329.9,4329.8,48.08078708]
[1757357536961,87.0294366,4329.9,4329.8,47.62098708]
[1757357537565,88.2594366,4329.9,4329.8,45.30848708]
[1757357538416,88.2594366,4329.9,4329.8,42.71001158]
[1757357538593,89.0262366,4329.9,4329.8,41.04538708]
[1757357538815,90.2562366,4329.9,4329.8,44.90438708]
[1757357538992,90.2562366,4329.9,4329.8,44.7335755]
[1757357539772,89.7993366,4329.9,4329.8,44.7335755]
[1757357539978,89.4894366,4329.9,4329.8,45.0214755]
[1757357540221,90.7194366,4329.9,4329.8,45.0214755]
[1757357540579,90.7194366,4329.9,4329.8,47.96985028]
[1757357540815,90.7194366,4329.9,4329.8,48.08505028]
[1757357541021,90.7194366,4329.9,4329.8,47.62525028]
[1757357541739,91.9494366,4329.9,4329.8,15.31275028]
[1757357541917,91.9494366,4329.9,4329.8,45.31275028]
[1757357542115,91.9494366,4329.9,4329.8,41.45375028]
[1757357542347,91.9494366,4329.9,4329.8,45.31475028]
[1757357542545,91.9494366,4329.9,4329.8,47.62725028]
[1757357542931,93.1794366,4329.9,4329.8,47.62725028]
[1757357543463,93.1794366,4329.9,4329.8,43.5901755]
[1757357543666,93.4893366,4329.9,4329.8,44.8497755]
[1757357544161,94.4094366,4329.9,4329.8,44.8497755]
[1757357545611,95.6394366,4329.9,4329.8,44.8497755]
[1757357546061,96.4062366,4329.9,4329.8,44.7345755]
[1757357546222,95.6394366,4329.9,4329.8,45.0224755]
[1757357547023,95.6394366,4329.9,4329.8,44.7345755]
[1757357547024,96.8694366,4329.9,4329.8,44.7345755]
[1757357547221,97.1793366,4329.9,4329.8,44.7345755]
[1757357547417,97.1803366,4329.9,4329.8,44.7345755]
[1757357547671,100.0534366,4329.9,4329.8,12.425]
[1757357547869,100.0534366,4329.9,4329.8,14.7345755]
[1757357548226,97.6372366,4329.9,4329.8,14.7345755]
[1757357548466,98.8672366,4329.9,4329.8,14.7345755]
[1757357549740,100.0972366,4329.9,4329.8,14.7345755]
[1757357550880,99.3304366,4329.9,4329.8,14.7345755]
[1757357551256,100.8492366,4329.9,4329.8,14.7345755]
[1757357551669,101.3098366,4329.9,4329.8,14.7345755]
[1757357552080,103.5639366,4329.9,4329.8,12.425]
[1757357552252,103.5639366,4329.9,4329.8,14.7345755]
[1757357552452,104.7939366,4329.9,4329.8,14.7345755]
[1757357552868,105.94182495,4329.9,4329.8,5.565]
[1757357553076,105.94182495,4329.9,4329.8,9.423]
[1757357553276,105.94182495,4329.9,4329.8,12.423]
[1757357553850,107.17182495,4329.9,4329.8,12.423]
[1757357555178,108.40182495,4329.9,4329.8,12.423]
[1757357556577,109.63182495,4329.9,4329.8,12.423]
[1757357556882,106.91712495,4329.9,4329.8,12.423]
[1757357557231,107.37772495,4329.9,4329.8,12.423]
[1757357558047,108.60772495,4329.9,4329.8,12.423]
[1757357558479,110.86182495,4329.9,4329.8,12.423]
[1757357559248,112.09182495,4329.9,4329.8,12.423]
[1757357560789,113.32182495,4329.9,4329.8,12.423]
[1757357561156,111.06772495,4329.9,4329.8,12.423]
[1757357561693,109.1704366,4329.9,4329.8,15.0235755]
[1757357561892,109.1704366,4329.9,4329.8,17.8715755]
[1757357562057,110.4004366,4329.9,4329.8,17.8715755]
[1757357562901,110.4004366,4329.9,4329.8,17.9867755]
[1757357563259,110.4004366,4329.9,4329.8,17.5300755]
[1757357563601,111.6304366,4329.9,4329.8,15.1387755]
[1757357563901,111.9192366,4329.9,4329.8,10.9897755]
[1757357564102,118.11651566,4329.9,4329.8,7.337]
[1757357564305,118.11651566,4329.9,4329.8,11.197]
[1757357564903,119.34651566,4329.9,4329.8,11.197]
[1757357566060,120.57651566,4329.9,4329.8,11.197]
[1757357567607,121.80651566,4329.9,4329.8,11.197]
[1757357568990,123.03651566,4329.9,4329.8,11.197]
[1757357570273,124.26651566,4329.9,4329.8,11.197]
[1757357571842,125.49651566,4329.9,4329.8,11.197]
[1757357573170,126.72651566,4329.9,4329.8,11.197]
[1757357574811,127.95651566,4329.9,4329.8,11.197]
[1757357575992,129.18651566,4329.9,4329.8,11.197]
[1757357577376,130.41651566,4329.9,4329.8,11.197]
[1757357579504,131.64651566,4329.9,4329.8,11.197]
[1757357581251,132.87651566,4329.9,4329.8,11.197]
[1757357582437,132.87651566,4329.9,4329.8,3.883]
[1757357582610,134.10651566,4329.9,4329.8,3.883]
[1757357584155,135.33651566,4329.9,4329.8,3.883]
[1757357584380,133.08241566,4329.9,4329.8,3.883]
[1757357585325,134.31241566,4329.9,4329.8,3.883]
[1757357586060,136.70381566,4329.9,4329.8,3.883]
[1757357586723,137.93381566,4329.9,4329.8,3.883]
[1757357586911,137.93381566,4329.9,4329.8,0.027]
[1757357587250,137.93381566,4329.9,4329.8,3.889]
[1757357587849,137.93381566,4329.9,4329.8,0.027]
[1757357588151,139.16381566,4329.9,4329.8,3.889]
[1757357589582,140.39381566,4329.9,4329.8,3.889]
[1757357590338,140.39381566,4329.9,4329.8,3.89]
[1757357590959,141.62381566,4329.9,4329.8,3.89]
[1757357592274,142.85381566,4329.9,4329.8,3.89]
[1757357592703,0.792,4329.7,4329.6,1.774]
[1757357592920,0.792,4329.7,4329.4,0.002]
[1757357592921,3.10173553,4329.5,4329.4,0.002]
[1757357593435,3.39453553,4329.5,4329.4,0.002]
[1757357593728,7.48663553,4329.5,4329.4,0.002]
[1757357594180,7.48663553,4329.5,4329.4,3.865]
[1757357594375,9.7545435,4329.5,4329.4,3.865]
[1757357594927,9.7545435,4329.5,4328.4,0.002]
[1757357594928,3.21746914,4328.5,4328.4,0.002]
[1757357595222,3.10226914,4328.5,4328.4,3.866]
[1757357595526,6.25716914,4328.5,4327.8,0.025]
[1757357595680,6.25716914,4328.5,4327.1,0.02]
[1757357595681,11.06548351,4327.2,4327.1,0.02]
[1757357596213,14.22038351,4327.2,4327.1,0.02]
[1757357596523,15.45038351,4327.2,4327.1,0.02]
[1757357598041,16.68038351,4327.2,4327.1,0.02]
[1757357598342,18.57951072,4327.2,4327.1,0.02]
[1757357598646,2.46,4327.2,4327.1,2.643]
[1757357598815,2.46,4327.2,4327.1,3.0754]
[1757357598985,3.252,4327.2,4327.1,3.0754]
[1757357599175,4.482,4327.2,4327.1,3.0754]
[1757357599375,6.7929632,4327.2,4327.1,3.0754]
[1757357599577,6.7929632,4327.2,4327.1,2.643]
[1757357600306,4.482,4327.2,4327.1,3.0754]
[1757357600706,8.0229632,4327.2,4327.1,2.643]
[1757357601213,8.0229632,4327.2,4327.1,4.2066]
[1757357601214,9.05634017,4327.2,4327.1,4.2066]
[1757357601416,9.05634017,4327.2,4327.1,3.897]
[1757357602176,10.28634017,4327.2,4327.1,3.897]
[1757357603580,11.51634017,4327.2,4327.1,3.897]
[1757357604978,12.74634017,4327.2,4327.1,3.897]
[1757357605590,12.74634017,4327.2,4327.1,4.2066]
[1757357605790,10.43537697,4327.2,4327.1,6.9524]
[1757357606027,11.7129632,4327.2,4327.1,6.9524]
[1757357606390,12.9429632,4327.2,4327.1,6.52]
[1757357607397,12.9429632,4327.2,4327.1,4.2066]
[1757357607820,14.1729632,4327.2,4327.1,4.2066]
[1757357608900,14.4657632,4327.2,4327.1,3.897]
[1757357609101,16.61412547,4327.2,4327.1,3.895]
[1757357609301,17.84412547,4327.2,4327.1,3.895]
[1757357609543,20.23552547,4327.2,4327.1,3.895]
[1757357609908,20.23552547,4327.2,4327.1,0.02]
[1757357610120,3.10307002,4327.0,4326.9,1.773]
[1757357610525,6.25797002,4327.0,4326.9,1.773]
[1757357610710,7.48797002,4327.0,4326.9,1.773]
[1757357611441,7.48797002,4327.0,4326.9,5.649]
[1757357612230,8.71797002,4327.0,4326.9,5.649]
[1757357612419,10.98587799,4327.0,4326.9,5.649]
[1757357613355,7.83097799,4327.0,4326.9,5.649]
[1757357613531,9.06097799,4327.0,4326.9,5.9417]
[1757357613730,9.37387799,4327.0,4326.9,5.649]
[1757357614926,10.60387799,4327.0,4326.9,5.649]
[1757357616370,11.83387799,4327.0,4326.9,5.649]
[1757357616947,11.52097799,4327.0,4326.9,8.3532]
[1757357617570,11.52097799,4327.0,4326.9,5.9417]
[1757357617725,12.75097799,4327.0,4326.9,5.9417]
[1757357617923,12.75097799,4327.0,4326.9,8.3532]
[1757357618748,12.75097799,4327.0,4326.9,5.9417]
[1757357619163,13.98097799,4327.0,4326.9,5.9417]
[1757357619729,8.61,4327.0,4326.9,8.3532]
[1757357619959,10.92107002,4327.0,4326.9,8.7949]
[1757357620224,11.71307002,4327.0,4326.9,5.649]
[1757357620652,12.94307002,4327.0,4326.9,5.649]
[1757357620858,13.25597002,4327.0,4326.9,5.649]
[1757357621457,15.21097799,4327.0,4326.9,5.649]
[1757357621833,15.21097799,4327.0,4326.9,5.9417]
[1757357622037,16.44097799,4327.0,4326.9,5.9417]
[1757357622690,16.44097799,4327.0,4326.9,5.649]
[1757357622867,17.19017799,4327.0,4326.9,5.649]